lending/lending_fUSD_20250131
["ID","MTS","AMOUNT","RATE_DAILY","PERIOD"]
[351031302,1738301460371,-500.0,0.00019589,3]
[351031303,1738301460382,-500.0,0.00019589,3]
[351031304,1738301460393,-1516.36,0.00019589,3]
[351031305,1738301460404,-1467.6,0.00019589,3]
[351031306,1738301460414,-500.0,0.00019589,3]
[351031307,1738301460424,-1520.66,0.00019589,3]
[351031308,1738301460435,-1558.27,0.00019589,3]
[351031309,1738301460446,-500.0,0.00019589,3]
[351031310,1738301460457,-3293.33,0.00019589,3]
[351031311,1738301460467,-1169.06,0.00019589,3]
[351031312,1738301460478,-500.0,0.00019589,3]
[351031313,1738301460488,-9062.21,0.00019589,3]
[351031314,1738301460499,-500.0,0.00019589,3]
[351031315,1738301460510,-747.99,0.00019589,3]
[351031316,1738301460519,-1804.44,0.00019589,3]
[351031317,1738301460529,-500.0,0.00019589,3]
[351031318,1738301460540,-500.0,0.00019589,3]
[351031319,1738301460551,-281.915532,0.00019589,2]
[351031320,1738301460561,-2334.42,0.00019589,3]
[351031321,1738301460571,-2036.52,0.00019589,3]
[351031322,1738301460580,-281.915532,0.00019589,2]
[351031323,1738301460591,-500.0,0.00019589,3]
[351031324,1738301460602,-589.68,0.00019589,3]
[351031325,1738301460612,-500.0,0.00019589,3]
[351031326,1738301460621,-737.98,0.00019589,3]
[351031327,1738301460631,-500.0,0.00019589,3]
[351031328,1738301460642,-1877.53,0.00019589,3]
[351031329,1738301460652,-2831.42,0.00019589,3]
[351031330,1738301460662,-2138.68,0.00019589,3]
[351031331,1738301460672,-946.23,0.00019589,3]
[351031332,1738301460683,-1290.34,0.00019589,3]
[351031333,1738301460693,-2672.06,0.00019589,3]
[351031334,1738301460703,-1826.29,0.00019589,3]
[351031335,1738301460714,-2434.41,0.00019589,3]
[351031336,1738301460724,-2762.83,0.00019589,3]
[351031337,1738301460734,-1753.18,0.00019589,3]
[351031338,1738301460743,-866.79,0.00019589,3]
[351031339,1738301460754,-1557.84,0.00019589,3]
[351031340,1738301460764,-846.5,0.00019589,3]
[351031341,1738301460774,-5078.56,0.00019589,3]
[351031342,1738301460783,-2383.5,0.00019589,3]
[351031343,1738301460793,-1139.58,0.00019589,3]
[351031344,1738301460803,-4118.81,0.00019589,3]
[351031345,1738301460813,-2463.41,0.00019589,3]
[351031346,1738301460823,-1861.99,0.00019589,3]
[351031347,1738301460833,-1189.93,0.00019589,3]
[351031348,1738301460843,-1136.34,0.00019589,3]
[351031349,1738301460855,-612.86,0.00019589,3]
[351031350,1738301460865,-3274.89,0.00019589,3]
[351031351,1738301460875,-5379.83,0.00019589,3]
[351031352,1738301460885,-2607.33,0.00019589,3]
[351031353,1738301460895,-1714.12,0.00019589,3]
[351031354,1738301460906,-865.08,0.00019589,3]
[351031355,1738301460916,-2355.41,0.00019589,3]
[351031356,1738301460926,-500.0,0.00019589,3]
[351031357,1738301460936,-152.76,0.00019589,3]
[351031358,1738301460946,-500.0,0.00019589,3]
[351031359,1738301460956,-500.0,0.00019589,3]
[351031360,1738301460967,-7803.52,0.00019589,3]
[351031361,1738301460977,-2477.27,0.00019589,3]
[351031362,1738301460986,-152.366095,0.00019589,2]
[351031363,1738301460997,-5824.51,0.00019589,3]
[351031364,1738301461007,-11176.24,0.00019589,3]
[351031365,1738301461017,-6615.38,0.00019589,3]
[351031366,1738301461027,-2234.24,0.00019589,3]
[351031367,1738301461036,-500.0,0.00019589,3]
[351031368,1738301461047,-5419.3,0.00019589,3]
[351031369,1738301461056,-1844.22,0.00019589,3]
[351031370,1738301461066,-151.0,0.00019589,2]
[351031371,1738301461076,-1614.58,0.00019589,3]
[351031372,1738301461086,-637.65,0.00019589,3]
[351031373,1738301461096,-3986.72,0.00019589,3]
[351031374,1738301461107,-1949.5,0.00019589,3]
[351031375,1738301461119,-944.38,0.00019589,3]
[351031376,1738301461129,-2619.26,0.00019589,3]
[351031377,1738301461139,-3467.6,0.00019589,3]
[351031378,1738301461148,-2527.54,0.00019589,3]
[351031379,1738301461158,-151.0,0.00019589,2]
[351031380,1738301461169,-5123.32,0.00019589,3]
[351031381,1738301461179,-151.0,0.00019589,2]
[351031382,1738301461189,-1491.99,0.00019589,3]
[351031383,1738301461199,-500.0,0.00019589,3]
[351031384,1738301461210,-1779.19,0.00019589,3]
[351031385,1738301461220,-7848.06,0.00019589,3]
[351031386,1738301461230,-6202.83,0.00019589,3]
[351031387,1738301461240,-500.0,0.00019589,3]
[351031388,1738301461250,-972.35,0.00019589,2]
[351031389,1738301461261,-3926.56,0.00019589,3]
[351031390,1738301461272,-1095.47,0.00019589,3]
[351031391,1738301461282,-9224.17,0.00019589,3]
[351031392,1738301461292,-500.0,0.00019589,3]
[351031393,1738301461303,-1603.33,0.00019589,3]
[351031394,1738301461313,-530.1,0.00019589,3]
[351031395,1738301461323,-2068.69,0.00019589,3]
[351031396,1738301461334,-500.0,0.00019589,3]
[351031397,1738301461345,-3891.85,0.00019589,3]
[351031398,1738301461357,-500.0,0.00019589,3]
[351031399,1738301461367,-1801.02,0.00019589,3]
[351031400,1738301461377,-68.12755048,0.00019589,3]
[351031401,1738301462135,-767.80244952,0.00019589,3]
[351031402,1738301462145,-598.68,0.00019589,3]
[351031403,1738301462154,-3175.26,0.00019589,3]
[351031404,1738301462163,-1022.97,0.00019589,3]
[351031405,1738301462173,-1912.69,0.00019589,3]
[351031406,1738301462182,-500.0,0.00019589,3]
[351031407,1738301462191,-6703.22,0.00019589,3]
[351031408,1738301462203,-4607.05,0.00019589,3]
[351031409,1738301462213,-5696.17,0.00019589,3]
[351031410,1738301462222,-769.94,0.00019589,3]
[351031411,1738301462232,-1736.62,0.00019589,3]
[351031412,1738301462241,-2000.62,0.00019589,3]
[351031413,1738301462250,-28.37008402,0.00019589,3]
[351031414,1738301462630,-500.0,0.00019178,2]
[351031415,1738301462640,-648.5,0.00019178,2]
[351031416,1738301462651,-59.88738396,0.00019315,3]
[351031417,1738301462664,-3578.32261604,0.00019315,3]
[351031418,1738301462675,-500.0,0.00019315,3]
[351031419,1738301462685,-648.5,0.00019315,3]
[351031420,1738301462696,-1102.57537075,0.00019452,3]
[351031421,1738301462731,-838.19734,0.00019452,3]
[351031422,1738301462805,-1176.88300004,0.00019452,3]
[351031423,1738301463225,-520.55428921,0.00019452,3]
[351031424,1738301463236,-648.5,0.00019452,3]
[351031425,1738301463247,-500.0,0.00019452,3]
[351031426,1738301463258,-1808.68991598,0.00019589,3]
[351031427,1738301463269,-151.0,0.00019589,2]
[351031428,1738301463280,-1293.95,0.00019589,3]
[351031429,1738301463290,-3719.83,0.00019589,3]
[351031430,1738301463301,-500.0,0.00019589,3]
[351031431,1738301463312,-3066.89,0.00019589,3]
[351031432,1738301463322,-500.0,0.00019589,3]
[351031433,1738301463333,-151.0,0.00019589,2]
[351031434,1738301463343,-500.0,0.00019589,3]
[351031435,1738301463356,-3919.08,0.00019589,3]
[351031436,1738301463366,-509.75,0.00019589,3]
[351031437,1738301463377,-523.08,0.00019589,3]
[351031438,1738301463388,-3009.01,0.00019589,3]
[351031439,1738301463403,-1823.11,0.00019589,3]
[351031440,1738301463414,-1490.79,0.00019589,3]
[351031441,1738301463424,-1001.77,0.00019589,3]
[351031442,1738301463435,-9971.99,0.00019589,3]
[351031443,1738301463445,-151.0,0.00019589,2]
[351031444,1738301463456,-729.83,0.00019589,3]
[351031445,1738301463466,-2546.12,0.00019589,3]
[351031446,1738301463476,-2335.48,0.00019589,3]
[351031447,1738301463487,-500.0,0.00019589,3]
[351031448,1738301463497,-500.0,0.00019589,3]
[351031449,1738301463508,-500.0,0.00019589,3]
[351031450,1738301463518,-2888.81,0.00019589,3]
[351031451,1738301463528,-500.0,0.00019589,3]
[351031452,1738301463539,-2745.14,0.00019589,3]
[351031453,1738301463550,-1274.86,0.00019589,3]
[351031454,1738301463561,-1297.49,0.00019589,3]
[351031455,1738301463572,-604.18,0.00019589,3]
[351031456,1738301463582,-500.0,0.00019589,3]
[351031457,1738301463593,-500.0,0.00019589,3]
[351031458,1738301463603,-972.51,0.00019589,3]
[351031459,1738301463614,-2384.17,0.00019589,3]
[351031460,1738301463625,-2189.23,0.00019589,3]
[351031461,1738301463635,-1427.14,0.00019589,3]
[351031462,1738301463645,-500.0,0.00019589,3]
[351031463,1738301463656,-500.0,0.00019589,3]
[351031464,1738301463666,-1854.09,0.00019589,3]
[351031465,1738301463677,-1598.55,0.00019589,3]
[351031466,1738301463687,-500.0,0.00019589,3]
[351031467,1738301463698,-500.0,0.00019589,3]
[351031468,1738301463708,-4563.53,0.00019589,3]
[351031469,1738301463718,-593.54,0.00019589,3]
[351031470,1738301463728,-1044.49,0.00019589,3]
[351031471,1738301463739,-1298.97,0.00019589,3]
[351031472,1738301463749,-943.62,0.00019589,3]
[351031473,1738301463759,-3528.25,0.00019589,3]
[351031474,1738301463771,-1836.64,0.00019589,3]
[351031475,1738301463781,-500.0,0.00019589,3]
[351031476,1738301463920,-500.0,0.00019589,3]
[351031477,1738301463932,-500.0,0.00019589,3]
[351031478,1738301463943,-1442.22,0.00019589,3]
[351031479,1738301463953,-500.0,0.00019589,3]
[351031480,1738301463963,-500.0,0.00019589,3]
[351031481,1738301463974,-1260.34,0.00019589,3]
[351031482,1738301463983,-3121.04,0.00019589,3]
[351031483,1738301463994,-1385.11,0.00019589,3]
[351031484,1738301464004,-2298.22,0.00019589,3]
[351031485,1738301464013,-1045.84,0.00019589,3]
[351031486,1738301464023,-636.37,0.00019589,3]
[351031487,1738301464033,-917.12,0.00019589,3]
[351031488,1738301464044,-500.0,0.00019589,3]
[351031489,1738301464054,-500.0,0.00019589,3]
[351031490,1738301464064,-520.65,0.00019589,3]
[351031491,1738301464074,-3638.21,0.00019589,3]
[351031492,1738301464083,-648.5,0.00019589,3]
[351031493,1738301464093,-500.0,0.00019589,3]
[351031494,1738301464103,-3100.0,0.000196,7]
[351031495,1738301464116,-4401.79697588,0.00019616,2]
[351031496,1738301464127,-248.52239337,0.00019626,2]
[351031497,1738301464137,-201.56961271,0.00019626,3]
[351031498,1738301464147,-1872.54471819,0.00019626,2]
[351031499,1738301464159,-150.0,0.00019647,4]
[351031500,1738301464168,-150.0,0.00019647,4]
[351031501,1738301464178,-500.0,0.00019664,2]
[351031502,1738301464188,-600.0,0.000197,7]
[351031503,1738301464200,-3080.33566769,0.000197,2]
[351031504,1738301464210,-152.0,0.00019708,5]
[351031505,1738301464220,-4401.79697588,0.00019708,2]
[351031506,1738301464230,-150.0,0.00019712,4]
[351031507,1738301464240,-150.0,0.00019712,4]
[351031508,1738301464249,-667.1505069,0.00019722,2]
[351031509,1738301464259,-278.6370779,0.00019722,2]
[351031510,1738301464269,-228.6811207,0.00019722,2]
[351031511,1738301464280,-588.95,0.00019724,2]
[351031512,1738301464290,-584.81,0.00019725,3]
[351031513,1738301464300,-500.0,0.00019725,3]
[351031514,1738301464310,-500.0,0.00019725,3]
[351031515,1738301464320,-500.0,0.00019725,3]
[351031516,1738301464330,-759.37,0.00019725,3]
[351031517,1738301464339,-500.0,0.00019725,3]
[351031518,1738301464349,-500.0,0.00019725,3]
[351031519,1738301464360,-500.0,0.00019725,3]
[351031520,1738301464369,-500.0,0.00019725,3]
[351031521,1738301464379,-500.0,0.00019725,3]
[351031522,1738301464389,-762.88,0.00019725,3]
[351031523,1738301464398,-1157.23,0.00019725,3]
[351031524,1738301464408,-500.0,0.00019725,3]
[351031525,1738301464417,-500.0,0.00019725,3]
[351031526,1738301464427,-500.0,0.00019725,3]
[351031527,1738301464437,-500.0,0.00019725,3]
[351031528,1738301464448,-500.0,0.00019725,3]
[351031529,1738301464458,-587.4811993,0.00019725,3]
[351031530,1738301464468,-500.0,0.00019725,3]
[351031531,1738301464477,-500.0,0.00019725,3]
[351031532,1738301464487,-500.0,0.00019725,3]
[351031533,1738301464497,-500.0,0.00019725,3]
[351031534,1738301464507,-592.78,0.00019725,3]
[351031535,1738301464517,-500.0,0.00019725,3]
[351031536,1738301464526,-590.24,0.00019725,3]
[351031537,1738301464536,-500.0,0.00019725,3]
[351031538,1738301464546,-500.0,0.00019725,3]
[351031539,1738301464569,-576.29,0.00019725,3]
[351031540,1738301464579,-500.0,0.00019725,3]
[351031541,1738301464591,-703.51,0.00019725,3]
[351031542,1738301464603,-500.0,0.00019725,3]
[351031543,1738301464614,-500.0,0.00019725,3]
[351031544,1738301464624,-500.0,0.00019725,3]
[351031545,1738301464634,-768.67,0.00019725,3]
[351031546,1738301464644,-500.0,0.00019725,3]
[351031547,1738301464654,-500.0,0.00019725,3]
[351031548,1738301464664,-500.0,0.00019725,3]
[351031549,1738301464674,-628.18,0.00019725,3]
[351031550,1738301464684,-506.66,0.00019725,3]
[351031551,1738301464694,-500.0,0.00019725,3]
[351031552,1738301464705,-844.99,0.00019725,3]
[351031553,1738301464714,-500.0,0.00019725,3]
[351031554,1738301464724,-758.07,0.00019725,3]
[351031555,1738301464734,-5000.0,0.00019725,4]
[351031556,1738301464744,-1031.48,0.00019726,3]
[351031557,1738301464754,-500.0,0.00019726,3]
[351031558,1738301464763,-500.0,0.00019726,3]
[351031559,1738301464773,-500.0,0.00019726,3]
[351031560,1738301464783,-500.0,0.00019726,3]
[351031561,1738301464792,-500.0,0.00019726,3]
[351031562,1738301464802,-500.0,0.00019726,3]
[351031563,1738301464811,-668.89,0.00019726,3]
[351031564,1738301464821,-500.0,0.00019726,3]
[351031565,1738301464831,-556.35,0.00019726,3]
[351031566,1738301464840,-500.0,0.00019726,3]
[351031567,1738301464851,-500.0,0.00019726,3]
[351031568,1738301464862,-500.0,0.00019726,3]
[351031569,1738301464872,-500.0,0.00019726,3]
[351031570,1738301464882,-500.0,0.00019726,3]
[351031571,1738301464892,-500.0,0.00019726,3]
[351031572,1738301464901,-577.39,0.00019726,3]
[351031573,1738301464911,-595.91171454,0.00019726,3]
[351031574,1738301464920,-500.0,0.00019726,3]
[351031575,1738301464930,-533.63,0.00019726,3]
[351031576,1738301464941,-500.0,0.00019726,3]
[351031577,1738301464952,-500.0,0.00019726,3]
[351031578,1738301464963,-500.0,0.00019726,3]
[351031579,1738301464973,-500.0,0.00019726,3]
[351031580,1738301464983,-1113.16,0.00019726,3]
[351031581,1738301464993,-500.0,0.00019726,3]
[351031582,1738301465004,-500.0,0.00019726,3]
[351031583,1738301465014,-500.0,0.00019726,3]
[351031584,1738301465024,-3468.939684,0.00019726,3]
[351031585,1738301465034,-500.0,0.00019726,3]
[351031586,1738301465044,-152.930379,0.00019726,3]
[351031587,1738301465058,-500.0,0.00019726,3]
[351031588,1738301465068,-500.0,0.00019726,3]
[351031589,1738301465077,-500.0,0.00019726,3]
[351031590,1738301465087,-945.71,0.00019726,3]
[351031591,1738301465097,-500.0,0.00019726,3]
[351031592,1738301465108,-2451.831411,0.00019726,3]
[351031593,1738301465118,-500.0,0.00019726,3]
[351031594,1738301465130,-714.12,0.00019726,3]
[351031595,1738301465140,-512.9629888,0.00019726,3]
[351031596,1738301465151,-600.11,0.00019726,3]
[351031597,1738301465163,-500.0,0.00019726,3]
[351031598,1738301465174,-500.0,0.00019726,3]
[351031599,1738301465183,-512.19,0.00019726,3]
[351031600,1738301465195,-500.0,0.00019726,3]
[351031601,1738301465207,-570.94322978,0.00019726,3]
[351031602,1738301465216,-419.67957547,0.00019726,3]
[351031603,1738301465226,-500.0,0.00019726,3]
[351031604,1738301465236,-968.05,0.00019726,3]
[351031605,1738301465245,-548.27,0.00019726,3]
[351031606,1738301465255,-1811.08,0.00019726,3]
[351031607,1738301465265,-592.21,0.00019726,3]
[351031608,1738301465275,-500.0,0.00019726,3]
[351031609,1738301465285,-500.0,0.00019726,3]
[351031610,1738301465294,-534.18,0.00019726,3]
[351031611,1738301465304,-1432.04,0.00019726,3]
[351031612,1738301465313,-222.278609,0.00019726,2]
[351031613,1738301465323,-500.0,0.00019726,3]
[351031614,1738301465333,-618.73,0.00019726,3]
[351031615,1738301465343,-500.0,0.00019726,3]
[351031616,1738301465352,-1180.38,0.00019726,3]
[351031617,1738301465364,-1557.64,0.00019726,3]
[351031618,1738301465374,-654.78,0.00019726,3]
[351031619,1738301465383,-500.0,0.00019726,3]
[351031620,1738301465394,-688.33,0.00019726,3]
[351031621,1738301465404,-739.44,0.00019726,3]
[351031622,1738301465414,-1000.98,0.00019726,3]
[351031623,1738301465424,-782.64,0.00019726,3]
[351031624,1738301465434,-663.82,0.00019726,3]
[351031625,1738301465445,-1415.57,0.00019726,3]
[351031626,1738301465457,-500.0,0.00019726,3]
[351031627,1738301465467,-578.53,0.00019726,3]
[351031628,1738301465479,-770.59,0.00019726,3]
[351031629,1738301465490,-944.57,0.00019726,3]
[351031630,1738301465500,-724.12,0.00019726,3]
[351031631,1738301465510,-741.64,0.00019726,3]
[351031632,1738301465520,-1675.52,0.00019726,3]
[351031633,1738301465530,-752.95,0.00019726,3]
[351031634,1738301465539,-670.74,0.00019726,3]
[351031635,1738301465549,-500.0,0.00019726,3]
[351031636,1738301465558,-1929.23,0.00019726,3]
[351031637,1738301465568,-697.3,0.00019726,3]
[351031638,1738301465583,-698.89,0.00019726,3]
[351031639,1738301465592,-716.53,0.00019726,3]
[351031640,1738301465602,-543.95031595,0.00019726,3]
[351031641,1738301465613,-594.18,0.00019726,3]
[351031642,1738301465622,-1177.73,0.00019726,3]
[351031643,1738301465632,-606.36,0.00019726,3]
[351031644,1738301465641,-692.8,0.00019726,3]
[351031645,1738301465651,-1033.79,0.00019726,3]
[351031646,1738301465661,-500.0,0.00019726,3]
[351031647,1738301465671,-672.69,0.00019726,3]
[351031648,1738301465681,-592.23,0.00019726,3]
[351031649,1738301465692,-588.15,0.00019726,3]
[351031650,1738301465701,-668.74,0.00019726,3]
[351031651,1738301465711,-1202.42,0.00019726,3]
[351031652,1738301465721,-569.49,0.00019726,3]
[351031653,1738301465731,-500.0,0.00019726,3]
[351031654,1738301465741,-875.82,0.00019726,3]
[351031655,1738301465751,-540.19,0.00019726,3]
[351031656,1738301465761,-500.0,0.00019726,3]
[351031657,1738301465772,-1057.5,0.00019726,3]
[351031658,1738301465781,-1247.9,0.00019726,3]
[351031659,1738301465791,-542.18,0.00019726,3]
[351031660,1738301465801,-500.0,0.00019726,3]
[351031661,1738301465811,-500.0,0.00019726,3]
[351031662,1738301465820,-1115.39,0.00019726,3]
[351031663,1738301465830,-543.4,0.00019726,3]
[351031664,1738301465840,-500.0,0.00019726,3]
[351031665,1738301465850,-500.0,0.00019726,3]
[351031666,1738301465861,-861.4,0.00019726,3]
[351031667,1738301465871,-500.0,0.00019726,3]
[351031668,1738301465880,-500.0,0.00019726,3]
[351031669,1738301465890,-704.27,0.00019726,3]
[351031670,1738301465900,-749.91,0.00019726,3]
[351031671,1738301465911,-1414.14,0.00019726,3]
[351031672,1738301465922,-849.54,0.00019726,3]
[351031673,1738301465933,-500.0,0.00019726,3]
[351031674,1738301465943,-1501.61,0.00019726,3]
[351031675,1738301465954,-500.0,0.00019726,3]
[351031676,1738301465964,-641.99,0.00019726,3]
[351031677,1738301465975,-500.0,0.00019726,3]
[351031678,1738301465984,-1058.81,0.00019726,3]
[351031679,1738301465994,-982.38,0.00019726,3]
[351031680,1738301466004,-500.0,0.00019726,3]
[351031681,1738301466014,-682.82,0.00019726,3]
[351031682,1738301466023,-500.0,0.00019726,3]
[351031683,1738301466033,-2172.4488194,0.00019726,2]
[351031684,1738301466043,-717.1,0.00019726,3]
[351031685,1738301466053,-610.98,0.00019726,3]
[351031686,1738301466063,-1510.03,0.00019726,3]
[351031687,1738301466073,-390.05881622,0.00019726,3]
[351031688,1738301466083,-1186.41,0.00019726,3]
[351031689,1738301466097,-737.71,0.00019726,3]
[351031690,1738301466107,-500.0,0.00019726,3]
[351031691,1738301466120,-1703.2,0.00019726,3]
[351031692,1738301466131,-662.02,0.00019726,3]
[351031693,1738301466141,-500.0,0.00019726,3]
[351031694,1738301466151,-715.51,0.00019726,3]
[351031695,1738301466163,-1245.61,0.00019726,3]
[351031696,1738301466174,-600.22,0.00019726,3]
[351031697,1738301466184,-673.97,0.00019726,3]
[351031698,1738301466196,-500.0,0.00019726,3]
[351031699,1738301466206,-1467.8254287,0.00019726,2]
[351031700,1738301466216,-500.0,0.00019726,3]
[351031701,1738301466227,-736.85,0.00019726,3]
[351031702,1738301466237,-658.3,0.00019726,3]
[351031703,1738301466248,-732.79,0.00019726,3]
[351031704,1738301466258,-500.0,0.00019726,3]
[351031705,1738301466270,-500.0,0.00019726,3]
[351031706,1738301466282,-761.23,0.00019726,3]
[351031707,1738301466295,-1167.39,0.00019726,3]
[351031708,1738301466307,-500.0,0.00019726,3]
[351031709,1738301466320,-912.55,0.00019726,3]
[351031710,1738301466332,-500.0,0.00019726,3]
[351031711,1738301466343,-893.93,0.00019726,3]
[351031712,1738301466354,-500.0,0.00019726,3]
[351031713,1738301466366,-2344.9895478,0.00019726,2]
[351031714,1738301466376,-500.0,0.00019726,3]
[351031715,1738301466387,-500.0,0.00019726,3]
[351031716,1738301466398,-947.81,0.00019726,3]
[351031717,1738301466408,-500.0,0.00019726,3]
[351031718,1738301466419,-600.02,0.00019726,3]
[351031719,1738301466429,-829.97,0.00019726,3]
[351031720,1738301466440,-500.0,0.00019726,3]
[351031721,1738301466451,-500.0,0.00019726,3]
[351031722,1738301466462,-636.5,0.00019726,3]
[351031723,1738301466473,-849.42,0.00019726,3]
[351031724,1738301466483,-1380.74,0.00019726,3]
[351031725,1738301466494,-728.25,0.00019726,3]
[351031726,1738301466504,-1406.67,0.00019726,3]
[351031727,1738301466515,-500.0,0.00019726,3]
[351031728,1738301466526,-1963.59,0.00019726,3]
[351031729,1738301466536,-847.46,0.00019726,3]
[351031730,1738301466547,-1196.13,0.00019726,3]
[351031731,1738301466557,-1792.21,0.00019726,3]
[351031732,1738301466568,-923.59,0.00019726,3]
[351031733,1738301466578,-1114.71,0.00019726,3]
[351031734,1738301466589,-1758.05,0.00019726,3]
[351031735,1738301466600,-500.0,0.00019726,3]
[351031736,1738301466612,-739.29,0.00019726,3]
[351031737,1738301466623,-710.98,0.00019726,3]
[351031738,1738301466633,-161.04345466,0.00019726,3]
[351031739,1738301466643,-831.41,0.00019726,3]
[351031740,1738301466654,-1679.77,0.00019726,3]
[351031741,1738301466665,-500.0,0.00019726,3]
[351031742,1738301466675,-994.45,0.00019726,3]
[351031743,1738301466686,-798.64,0.00019726,3]
[351031744,1738301466696,-1481.51,0.00019726,3]
[351031745,1738301466707,-500.0,0.00019726,3]
[351031746,1738301466719,-1369.48,0.00019726,3]
[351031747,1738301466730,-984.58,0.00019726,3]
[351031748,1738301466741,-505.01,0.00019726,3]
[351031749,1738301466754,-673.1,0.00019726,3]
[351031750,1738301466764,-1009.72,0.00019726,3]
[351031751,1738301466775,-500.0,0.00019726,3]
[351031752,1738301466786,-500.0,0.00019726,3]
[351031753,1738301466797,-519.53,0.00019726,3]
[351031754,1738301466807,-151.0,0.00019726,2]
[351031755,1738301466817,-500.0,0.00019726,3]
[351031756,1738301466828,-505.17,0.00019726,3]
[351031757,1738301466838,-1080.35,0.00019726,3]
[351031758,1738301466850,-645.56,0.00019726,3]
[351031759,1738301466862,-1332.28,0.00019726,3]
[351031760,1738301466872,-1523.04,0.00019726,3]
[351031761,1738301466883,-192.96652673,0.00019726,3]
[351031762,1738301466893,-500.0,0.00019726,3]
[351031763,1738301466903,-500.0,0.00019726,3]
[351031764,1738301466915,-579.2,0.00019726,3]
[351031765,1738301466927,-612.38,0.00019726,3]
[351031766,1738301466938,-2182.26,0.00019726,3]
[351031767,1738301466949,-500.0,0.00019726,3]
[351031768,1738301466961,-1849.77,0.00019726,3]
[351031769,1738301466972,-787.08,0.00019726,3]
[351031770,1738301466982,-500.0,0.00019726,3]
[351031771,1738301466994,-500.0,0.00019726,3]
[351031772,1738301467005,-500.0,0.00019726,3]
[351031773,1738301467015,-1306.69,0.00019726,3]
[351031774,1738301467026,-1185.88,0.00019726,3]
[351031775,1738301467037,-500.0,0.00019726,3]
[351031776,1738301467047,-500.0,0.00019726,3]
[351031777,1738301467057,-500.0,0.00019726,3]
[351031778,1738301467068,-739.62,0.00019726,3]
[351031779,1738301467078,-1080.87,0.00019726,3]
[351031780,1738301467089,-632.18,0.00019726,3]
[351031781,1738301467100,-1343.21,0.00019726,3]
[351031782,1738301467110,-1151.99,0.00019726,3]
[351031783,1738301467123,-500.0,0.00019726,3]
[351031784,1738301467133,-792.23,0.00019726,3]
[351031785,1738301467143,-694.87,0.00019726,3]
[351031786,1738301467154,-2213.48,0.00019726,3]
[351031787,1738301467166,-7368.92,0.00019726,3]
[351031788,1738301467176,-500.0,0.00019726,3]
[351031789,1738301467186,-500.0,0.00019726,3]
[351031790,1738301467197,-824.06,0.00019726,3]
[351031791,1738301467209,-1125.68,0.00019726,3]
[351031792,1738301467220,-500.0,0.00019726,3]
[351031793,1738301467231,-577.65,0.00019726,3]
[351031794,1738301467241,-2935.97,0.00019726,3]
[351031795,1738301467251,-500.0,0.00019726,3]
[351031796,1738301467262,-151.0,0.00019726,2]
[351031797,1738301467273,-1846.87,0.00019726,3]
[351031798,1738301467283,-675.76,0.00019726,3]
[351031799,1738301467295,-2334.88,0.00019726,3]
[351031800,1738301467307,-1091.13,0.00019726,3]
[351031801,1738301467317,-1150.98,0.00019726,2]